fUSD/lending_fUSD_20260307
["ID","MTS","AMOUNT","RATE_DAILY","PERIOD"]
[407906050,1772907034950,-500.0,0.00019883,2]
[407906051,1772907034959,-500.0,0.00019883,2]
[407906052,1772907034968,-500.0,0.00019883,2]
[407906053,1772907034979,-500.0,0.00019883,2]
[407906054,1772907034989,-501.62516958,0.00019883,2]
[407906055,1772907034999,-500.0,0.00019885,2]
[407906056,1772907035008,-500.0,0.00019885,2]
[407906057,1772907035018,-500.0,0.00019885,2]
[407906058,1772907035027,-500.0,0.00019885,2]
[407906059,1772907035037,-500.0,0.00019885,2]
[407906060,1772907035047,-3415.6,0.0001989,2]
[407906061,1772907035057,-3415.6,0.0001989,2]
[407906062,1772907035066,-3415.6,0.0001989,2]
[407906063,1772907035077,-787.16628092,0.0001989,2]
[407906064,1772907035088,-2628.43371908,0.0001989,2]
[407906065,1772907035098,-3415.6,0.0001989,2]
[407906066,1772907035107,-3415.6,0.0001989,2]
[407906067,1772907035117,-3415.6,0.0001989,2]
[407906068,1772907035127,-6457.12,0.0001989,2]
[407906069,1772907035136,-25000.0,0.00019891,3]
[407906070,1772907035145,-500.0,0.00019897,2]
[407906071,1772907035154,-500.0,0.00019897,2]
[407906072,1772907035165,-583.89,0.00019897,2]
[407906073,1772907035174,-500.0,0.00019897,2]
[407906074,1772907035183,-517.03877667,0.00019897,2]
[407906075,1772907035193,-620.11,0.00019897,2]
[407906076,1772907035203,-500.0,0.00019897,2]
[407906077,1772907035212,-500.0,0.00019897,2]
[407906078,1772907035222,-500.0,0.00019897,2]
[407906079,1772907035231,-279.9073084,0.00019897,2]
[407906080,1772907035240,-500.0,0.00019897,2]
[407906081,1772907035249,-151.0,0.00019897,2]
[407906082,1772907035258,-500.0,0.00019899,2]
[407906083,1772907035267,-500.0,0.00019899,2]
[407906084,1772907035278,-500.0,0.00019899,2]
[407906085,1772907035287,-500.0,0.00019899,2]
[407906086,1772907035297,-500.0,0.00019899,2]
[407906087,1772907035306,-500.0,0.00019899,2]
[407906088,1772907035315,-500.0,0.00019899,2]
[407906089,1772907035325,-500.0,0.00019899,2]
[407906090,1772907035334,-500.0,0.00019899,2]
[407906091,1772907035344,-500.0,0.00019899,2]
[407906092,1772907035353,-500.0,0.00019899,2]
[407906093,1772907035362,-500.0,0.00019899,2]
[407906094,1772907035372,-500.0,0.00019899,2]
[407906095,1772907035381,-581.24,0.00019899,2]
[407906096,1772907035390,-500.0,0.00019899,2]
[407906097,1772907035400,-579.0562129,0.00019899,2]
[407906098,1772907035409,-583.89,0.00019899,2]
[407906099,1772907035419,-500.0,0.00019899,2]
[407906100,1772907035428,-620.11,0.00019899,2]
[407906101,1772907035437,-500.0,0.00019899,2]
[407906102,1772907035447,-500.0,0.00019899,2]
[407906103,1772907035456,-500.0,0.00019899,2]
[407906104,1772907035465,-500.0,0.000199,2]
[407906105,1772907035475,-25000.0,0.000199,3]
[407906106,1772907035484,-76036.32226395,0.000199,2]
[407906107,1772907035496,-1254.41808677,0.000199,2]
[407906108,1772907035507,-2237.43592063,0.000199,2]
[407906109,1772907035519,-4182.04686668,0.000199,2]
[407906110,1772907035534,-333.86552928,0.000199,2]
[407906111,1772907035545,-605.6100191,0.000199,2]
[407906112,1772907035556,-805.47043148,0.000199,2]
[407906113,1772907035584,-2645.50928177,0.000199,2]
[407906114,1772907035595,-47662.19490034,0.000199,2]
[407906115,1772907035604,-296.5993,0.000199,2]
[407906116,1772907035614,-10000.0,0.000199,2]
[407906117,1772907035624,-927.49193466,0.000199,2]
[407906125,1772907038251,-500.0,0.0001978,2]
[407906126,1772907038261,-396.84410475,0.0001978,2]
[407906127,1772907038271,-500.0,0.0001978,2]
[407906128,1772907038281,-145.17761667,0.0001978,2]
[407906129,1772907038293,-354.82238333,0.0001978,2]
[407906130,1772907038302,-500.0,0.0001978,2]
[407906131,1772907038312,-500.0,0.0001978,2]
[407906132,1772907038321,-521.88843541,0.0001978,2]
[407906133,1772907038331,-500.0,0.0001978,2]
[407906134,1772907038340,-205.53123357,0.0001978,2]
[407906135,1772907038350,-500.0,0.0001978,2]
[407906136,1772907038359,-500.0,0.0001978,2]
[407906137,1772907038368,-500.0,0.0001978,2]
[407906138,1772907038377,-353.01403454,0.0001978,2]
[407906139,1772907038387,-40739.48346588,0.00019833,2]
[407906140,1772907038397,-40739.48346588,0.00019844,2]
[407906141,1772907038407,-4718.84392312,0.00019856,2]
[407906142,1772907038416,-9277.43586534,0.000199,2]
[407906143,1772907038426,-5800.0,0.000199,2]
[407906144,1772907038435,-9783.35772538,0.000199,3]
[407906145,1772907038444,-2141.62083483,0.000199,2]
[407906146,1772907038454,-1298.0,0.000199,7]
[407906147,1772907038464,-150.0,0.000199,2]
[407906148,1772907038473,-462.81782728,0.000199,2]
[407906149,1772907038483,-222.52962526,0.000199,3]
[407906150,1772907038493,-575.09855802,0.000199,2]
[407906151,1772907038502,-1744.43292007,0.000199,2]
[407906152,1772907038512,-750.60703354,0.000199,2]
[407906153,1772907038521,-243.49426853,0.000199,2]
[407906164,1772907039498,-564.0886184,0.000199,2]
[407906165,1772907039509,-702.29760259,0.000199,2]
[407906166,1772907039520,-378.41958312,0.000199,2]
[407906167,1772907039538,-4718.84392312,0.00019871,2]
[407906168,1772907039547,-9769.55067767,0.000199,2]
[407906169,1772907039558,-11700.315341,0.000199,2]
[407906170,1772907039569,-12006.29957838,0.000199,2]
[407906171,1772907039580,-31724.24436506,0.000199,2]
[407906172,1772907039589,-7938.47445666,0.000199,2]
[407906173,1772907039600,-2345.88072181,0.000199,2]
[407906174,1772907039611,-9933.7901695,0.000199,2]
[407906175,1772907039623,-3908.44423548,0.000199,2]
[407906176,1772907039634,-1983.10889993,0.000199,2]
[407906177,1772907039645,-3147.04770173,0.000199,2]
[407906178,1772907039656,-3428.86230755,0.000199,2]
[407906179,1772907039668,-373.93454598,0.000199,2]
[407906180,1772907039679,-2050.90005329,0.000199,2]
[407906181,1772907039690,-638.55537377,0.000199,2]
[407906182,1772907039702,-540.944,0.000199,2]
[407906183,1772907039713,-3572.87009396,0.000199,2]
[407906184,1772907039724,-4000.0,0.000199,2]
[407906185,1772907039735,-2320.58896356,0.000199,2]
[407906186,1772907039747,-816.55861911,0.000199,2]
[407906187,1772907039755,-3980.0,0.000199,2]
[407906188,1772907039765,-1000.0,0.00019914,2]
[407906189,1772907039774,-1000.0,0.00019928,2]
[407906190,1772907039782,-151.0,0.00019947,2]
[407906191,1772907039792,-150.0,0.00019948,2]
[407906192,1772907039803,-500.0,0.00019949,2]
[407906193,1772907039813,-235.77756915,0.00019949,2]
[407906194,1772907039822,-500.0,0.00019949,2]
[407906195,1772907039831,-500.0,0.00019949,2]
[407906196,1772907039841,-249.54159128,0.00019949,2]
[407906197,1772907039852,-369.53490382,0.00019949,2]
[407906198,1772907039861,-605.11383753,0.00019949,2]
[407906199,1772907039870,-500.0,0.00019949,2]
[407906200,1772907039882,-500.0,0.00019949,2]
[407906201,1772907039891,-500.0,0.00019949,2]
[407906202,1772907039900,-500.0,0.00019949,2]
[407906203,1772907039910,-332.75784214,0.00019949,2]
[407906204,1772907039919,-42059.51764926,0.0001995,15]
[407906207,1772907040478,-402.8989,0.00015471,2]
[407906208,1772907040690,-767.0,0.00015471,2]
[407906209,1772907040902,-2736.4511,0.00015471,2]
[407906210,1772907040912,-414.0,0.00019579,2]
[407906211,1772907040922,-805.85,0.00019801,2]
[407906212,1772907040931,-805.85,0.00019847,2]
[407906213,1772907040940,-258067.0026855,0.0001995,15]
[407906214,1772907040949,-151.0,0.0001995,2]
[407906215,1772907040962,-151.0,0.0001995,2]
[407906216,1772907040972,-151.0,0.0001995,2]
[407906217,1772907040981,-151.0,0.0001995,2]
[407906218,1772907040990,-151.0,0.0001995,2]
[407906219,1772907040999,-151.0,0.0001995,2]
[407906220,1772907041009,-151.0,0.0001995,2]
[407906221,1772907041018,-264.645834,0.0001995,2]
[407906222,1772907041027,-151.0,0.0001995,2]
[407906223,1772907041036,-151.0,0.0001995,2]
[407906224,1772907041045,-350.0,0.00019952,2]
[407906225,1772907041054,-1000.0,0.00019952,2]
[407906226,1772907041063,-500.0,0.00019955,2]
[407906227,1772907041073,-1242.12037372,0.00019969,2]
[407906228,1772907041083,-400.0,0.0001997,2]
[407906229,1772907041092,-400.0,0.0001997,2]
[407906230,1772907041101,-400.0,0.0001997,2]
[407906231,1772907041110,-541.01514806,0.0001997,2]
[407906232,1772907041119,-164.34884721,0.00019973,2]
[407906233,1772907041128,-532.61390214,0.00019973,2]
[407906234,1772907041138,-150.0,0.00019973,2]
[407906235,1772907041147,-151.0,0.00019976,2]
[407906236,1772907041157,-500.0,0.00019978,2]
[407906237,1772907041167,-500.0,0.00019978,2]
[407906239,1772907041176,-583.89,0.00019978,2]
[407906241,1772907041186,-583.89,0.00019978,2]
[407906243,1772907041195,-500.0,0.00019978,2]
[407906244,1772907041204,-523.92765788,0.00019978,2]
[407906245,1772907041213,-620.11,0.00019978,2]
[407906246,1772907041223,-620.11,0.00019978,2]
[407906247,1772907041233,-500.0,0.00019978,2]
[407906248,1772907041242,-500.0,0.00019978,2]
[407906249,1772907041251,-500.0,0.00019978,2]
[407906250,1772907041261,-500.0,0.00019978,2]
[407906251,1772907041271,-500.0,0.00019978,2]
[407906252,1772907041279,-500.0,0.00019978,2]
[407906253,1772907041290,-4050.80730485,0.00019979,2]
[407906254,1772907041299,-6317.1875868,0.00019979,2]
[407906255,1772907041308,-19168.2684833,0.00019979,2]
[407906256,1772907041317,-17157.6743501,0.00019979,2]
[407906257,1772907041327,-415960.6883688,0.00019979,2]
[407906258,1772907041336,-151.337108,0.00019979,2]
[407906259,1772907041347,-151.0,0.00019979,2]
[407906260,1772907041357,-151.0,0.00019979,2]
[407906261,1772907041368,-151.0,0.00019979,2]
[407906262,1772907041378,-151.0,0.00019979,2]
[407906263,1772907041390,-453.388839,0.00019979,2]
[407906264,1772907041399,-453.388839,0.00019979,2]
[407906265,1772907041408,-453.388839,0.00019979,2]
[407906266,1772907041417,-453.388839,0.00019979,2]
[407906267,1772907041426,-151.0,0.00019979,2]
[407906268,1772907041435,-151.0,0.00019979,2]
[407906269,1772907041444,-151.0,0.00019979,2]
[407906270,1772907041454,-1000.0,0.00019979,2]
[407906271,1772907041463,-151.0,0.00019979,2]
[407906272,1772907041472,-151.0,0.00019979,2]
[407906273,1772907041481,-218.328244,0.00019979,2]
[407906274,1772907041490,-151.0,0.00019979,2]
[407906275,1772907041500,-151.0,0.00019979,2]
[407906276,1772907041509,-151.0,0.00019979,2]
[407906277,1772907041518,-151.0,0.00019979,2]
[407906278,1772907041527,-151.0,0.00019979,2]
[407906279,1772907041536,-151.45333064,0.0001998,2]
[407906280,1772907041546,-1242.12037372,0.0001999,2]
[407906281,1772907041555,-1242.12037372,0.0001999,2]
[407906282,1772907041564,-500.0,0.00019997,2]
[407906283,1772907041573,-500.0,0.00019997,2]
[407906284,1772907041582,-500.0,0.00019997,2]
[407906285,1772907041591,-500.0,0.00019997,2]
[407906286,1772907041600,-500.0,0.00019997,2]
[407906287,1772907041609,-500.0,0.00019997,2]
[407906288,1772907041618,-500.0,0.00019997,2]
[407906289,1772907041627,-500.0,0.00019997,2]
[407906290,1772907041636,-500.0,0.00019997,2]
[407906291,1772907041645,-500.0,0.00019997,2]
[407906292,1772907041656,-151.0,0.00019997,2]
[407906293,1772907041665,-500.0,0.00019998,2]
[407906294,1772907041674,-412.00988586,0.00019999,2]
[407906295,1772907041683,-300.0,0.00019999,2]
[407906296,1772907041693,-300.0,0.00019999,2]
[407906297,1772907041702,-666.0,0.00019999,2]
[407906298,1772907041710,-1295.19930183,0.00019999,5]
[407906299,1772907041721,-155.0,0.00019999,2]
[407906300,1772907041731,-500.0,0.00019999,2]
[407906301,1772907041740,-500.0,0.00019999,2]
[407906302,1772907041749,-500.0,0.00019999,2]
[407906303,1772907041758,-500.0,0.00019999,2]
[407906304,1772907041767,-275.18071975,0.00019999,2]
[407906305,1772907041776,-500.0,0.00019999,2]
[407906306,1772907041785,-500.0,0.00019999,2]
[407906307,1772907041794,-500.0,0.00019999,2]
[407906308,1772907041807,-500.0,0.00019999,2]
[407906309,1772907041816,-500.0,0.00019999,2]
[407906310,1772907041825,-500.0,0.00019999,2]
[407906311,1772907041834,-198.73,0.00019999,2]
[407906312,1772907041844,-500.0,0.00019999,2]
[407906313,1772907041853,-503.55073109,0.00019999,2]
[407906314,1772907041863,-500.0,0.00019999,2]
[407906315,1772907041874,-500.0,0.00019999,2]
[407906316,1772907041883,-500.0,0.00019999,2]
[407906317,1772907041891,-500.0,0.00019999,2]
[407906318,1772907041901,-500.0,0.00019999,2]
[407906319,1772907041910,-500.0,0.00019999,2]
[407906320,1772907041919,-500.0,0.00019999,2]
[407906321,1772907041928,-500.0,0.00019999,2]
[407906322,1772907041938,-500.0,0.00019999,2]
[407906323,1772907041948,-551.6,0.00019999,2]
[407906324,1772907041959,-500.0,0.00019999,2]
[407906325,1772907041969,-500.0,0.00019999,2]
[407906326,1772907041979,-500.0,0.00019999,2]
[407906327,1772907041989,-500.0,0.00019999,2]
[407906328,1772907041999,-500.0,0.00019999,2]
[407906329,1772907042008,-500.0,0.00019999,2]
[407906330,1772907042017,-500.0,0.00019999,2]
[407906331,1772907042026,-177.14945896,0.00019999,2]
[407906332,1772907042036,-500.0,0.00019999,2]
[407906333,1772907042046,-500.0,0.00019999,2]
[407906334,1772907042056,-500.0,0.00019999,2]
[407906335,1772907042067,-546.33,0.00019999,2]
[407906336,1772907042077,-500.0,0.00019999,2]
[407906337,1772907042087,-500.0,0.00019999,2]
[407906338,1772907042097,-500.0,0.00019999,2]
[407906339,1772907042106,-500.0,0.00019999,2]
[407906340,1772907042115,-500.0,0.00019999,2]
[407906341,1772907042124,-500.0,0.00019999,2]
[407906342,1772907042134,-500.0,0.00019999,2]
[407906343,1772907042145,-274.9282927,0.00019999,2]
[407906344,1772907042154,-500.0,0.00019999,2]
[407906345,1772907042164,-500.0,0.00019999,2]
[407906346,1772907042173,-500.0,0.00019999,2]
[407906347,1772907042182,-500.0,0.00019999,2]
[407906348,1772907042192,-602.40025463,0.00019999,2]
[407906349,1772907042201,-500.0,0.00019999,2]
[407906350,1772907042212,-381.33854944,0.00019999,2]
[407906351,1772907042221,-583.89,0.00019999,2]
[407906352,1772907042231,-583.89,0.00019999,2]
[407906353,1772907042240,-583.89,0.00019999,2]
[407906354,1772907042250,-583.89,0.00019999,2]
[407906355,1772907042558,-583.89,0.00019999,2]
[407906356,1772907042567,-583.89,0.00019999,2]
[407906357,1772907042577,-583.89,0.00019999,2]
[407906358,1772907042586,-583.89,0.00019999,2]
[407906359,1772907042596,-583.89,0.00019999,2]
[407906360,1772907042605,-583.89,0.00019999,2]
[407906361,1772907042615,-583.89,0.00019999,2]
[407906362,1772907042624,-583.89,0.00019999,2]
[407906363,1772907042633,-583.89,0.00019999,2]
[407906364,1772907042642,-583.89,0.00019999,2]
[407906365,1772907042653,-583.89,0.00019999,2]
[407906366,1772907042663,-583.89,0.00019999,2]
[407906367,1772907042672,-583.89,0.00019999,2]
[407906368,1772907042681,-583.89,0.00019999,2]
[407906369,1772907042690,-584.058378,0.00019999,2]
[407906370,1772907042699,-620.11,0.00019999,2]
[407906371,1772907042708,-620.11,0.00019999,2]
[407906372,1772907042718,-620.11,0.00019999,2]
[407906373,1772907042727,-620.11,0.00019999,2]
[407906374,1772907042736,-620.11,0.00019999,2]
[407906375,1772907042745,-620.11,0.00019999,2]
[407906376,1772907042754,-620.11,0.00019999,2]
[407906377,1772907042764,-620.11,0.00019999,2]
[407906378,1772907042773,-620.11,0.00019999,2]
[407906379,1772907042782,-620.11,0.00019999,2]
[407906380,1772907042791,-620.11,0.00019999,2]
[407906381,1772907042801,-620.11,0.00019999,2]
[407906382,1772907042813,-620.11,0.00019999,2]
[407906383,1772907042822,-620.11,0.00019999,2]
[407906384,1772907042831,-620.11,0.00019999,2]
[407906385,1772907042840,-620.11,0.00019999,2]
[407906386,1772907042849,-620.11,0.00019999,2]
[407906387,1772907042858,-620.11,0.00019999,2]
[407906388,1772907042868,-620.22,0.00019999,2]
[407906389,1772907042877,-500.0,0.00019999,2]
[407906390,1772907042886,-500.0,0.00019999,2]
[407906391,1772907042895,-500.0,0.00019999,2]
[407906392,1772907042905,-500.0,0.00019999,2]
[407906393,1772907042914,-500.0,0.00019999,2]
[407906394,1772907042923,-191.31621318,0.00019999,2]
[407906395,1772907042932,-500.0,0.00019999,2]
[407906396,1772907042942,-201.56469632,0.00019999,2]
[407906397,1772907042952,-150.0,0.00019999,2]
[407906398,1772907042961,-185.15269691,0.00019999,2]
[407906399,1772907042970,-4710.0,0.0002,2]
[407906400,1772907042979,-544464.15483215,0.0002,2]
[407906401,1772907042989,-470304.44181364,0.0002,2]
[407906402,1772907042998,-1000.0,0.0002,2]
[407906404,1772907043007,-10379.13836207,0.0002,2]
[407906405,1772907043016,-180.88675075,0.0002,2]
[407906406,1772907043026,-1000.0,0.0002,2]
[407906407,1772907043036,-1000.0,0.0002,2]
[407906408,1772907043045,-1000.0,0.0002,2]
[407906409,1772907043054,-1000.0,0.0002,2]
[407906410,1772907043064,-1000.0,0.0002,2]
[407906411,1772907043074,-1000.0,0.0002,2]
[407906412,1772907043083,-1000.0,0.0002,2]
[407906413,1772907043093,-1000.0,0.0002,2]
[407906414,1772907043102,-1000.0,0.0002,2]
[407906415,1772907043112,-1000.0,0.0002,2]
[407906416,1772907043122,-1000.0,0.0002,2]
[407906417,1772907043131,-1000.0,0.0002,2]
[407906418,1772907043142,-1000.0,0.0002,2]
[407906419,1772907043152,-1000.0,0.0002,2]
[407906423,1772907043161,-1000.0,0.0002,2]
[407906427,1772907043171,-1000.0,0.0002,2]
[407906431,1772907043181,-1000.0,0.0002,2]
[407906434,1772907043190,-1000.0,0.0002,2]
[407906436,1772907043199,-1000.0,0.0002,2]
[407906438,1772907043208,-1000.0,0.0002,2]
[407906439,1772907043218,-1000.0,0.0002,2]
[407906440,1772907043227,-1000.0,0.0002,2]
[407906441,1772907043236,-1000.0,0.0002,2]
[407906443,1772907043246,-1000.0,0.0002,2]
[407906445,1772907043255,-1000.0,0.0002,2]
[407906446,1772907043264,-301.30220199,0.0002,2]
[407906447,1772907043274,-289281.57802169,0.0002,2]
[407906448,1772907043283,-1539.85062353,0.0002,2]
[407906449,1772907043293,-177.26260799,0.0002,2]
[407906450,1772907043303,-1198007.87759195,0.0002,2]
[407906451,1772907043317,-710963.43248105,0.0002,2]
[407906452,1772907043326,-352.72856542,0.0002,2]
[407906453,1772907043335,-150.0,0.0002,2]
[407906454,1772907043344,-971028.96690425,0.0002,2]
[407906455,1772907043356,-1825.0690554,0.0002,2]
[407906456,1772907043368,-67476.18738773,0.0002,2]
[407906457,1772907043544,-5814.05245757,0.00019856,2]
[407906460,1772907046150,-2056.78958302,0.00019781,2]
[407906462,1772907046159,-310.76878293,0.00019856,2]
[407906463,1772907046271,-2919.0563766,0.00019856,2]
[407906464,1772907046312,-500.0,0.00019856,2]
[407906465,1772907046369,-1000.29667608,0.00019856,2]
[407906466,1772907046385,-1138.00561177,0.00019856,2]
[407906476,1772907276642,160.0,0.00022129,120]
[407906479,1772907373323,980.0,0.00031,120]
[407906480,1772907375838,257.0,0.00031,120]
[407906487,1772907503615,906.0,0.00031,120]
[407906502,1772908008118,-168.02,0.00013309,2]
[407906503,1772908008142,-32.33284643,0.00014853,2]
[407906509,1772908183898,7907.72,0.00031,120]
[407906513,1772908231323,-576.58573953,0.00014852,2]
[407906514,1772908231379,-501.52740981,0.00014852,2]
[407906515,1772908231391,-121.88685066,0.00014852,2]
[407906516,1772908231403,-1518.14715357,0.00014853,2]
[407906517,1772908231412,-359.96599577,0.00014853,2]
[407906518,1772908231424,-484.55790331,0.00014853,2]
[407906519,1772908231442,-1694.60610092,0.00014853,2]
[407906520,1772908231452,-30.39389908,0.00015323,2]
[407906521,1772908231464,-219.60610092,0.00015323,2]
[407906522,1772908231474,-300.0,0.00015371,2]
[407906523,1772908231483,-480.0,0.00015469,2]
[407906524,1772908231493,-7817.200774,0.0001587,2]
[407906525,1772908231503,-222.47487,0.0001595,7]
[407906526,1772908231513,-788.88,0.00016038,2]
[407906527,1772908231523,-1200.0,0.00016337,2]
[407906528,1772908231533,-150.0,0.000164,2]
[407906529,1772908231542,-213.0,0.000164,2]
[407906530,1772908231552,-302.46,0.000164,2]
[407906532,1772908231562,-352.47267551,0.000164,2]
[407906533,1772908231571,-500.0,0.00016408,2]
[407906534,1772908231581,-2000.0,0.00016508,2]
[407906535,1772908231591,-156.1,0.00016545,2]
[407906536,1772908231600,-10792.8911697,0.0001669,2]
[407906538,1772908231612,-2255.84924183,0.0001669,2]
[407906539,1772908231624,-866.46,0.0001669,2]
[407906540,1772908231636,-178952.10288847,0.0001669,2]
[407906541,1772908231645,-1554.39211862,0.00016704,2]
[407906542,1772908231655,-21477.26993223,0.00016704,2]
[407906543,1772908231665,-312.50806812,0.00016773,2]
[407906544,1772908231676,-151.0,0.0001679,2]
[407906545,1772908231686,-500.0,0.0001679,2]
[407906546,1772908231695,-151.0,0.0001679,2]
[407906547,1772908231705,-500.0,0.0001679,2]
[407906548,1772908231715,-151.0,0.0001679,2]
[407906549,1772908231724,-500.0,0.0001679,2]
[407906550,1772908231735,-500.0,0.0001679,2]
[407906551,1772908231745,-500.0,0.0001679,2]
[407906552,1772908231754,-500.0,0.0001679,2]
[407906553,1772908231764,-500.0,0.0001679,2]
[407906554,1772908231774,-151.0,0.0001679,2]
[407906555,1772908231783,-500.0,0.0001679,2]
[407906556,1772908231793,-151.0,0.0001679,2]
[407906557,1772908231803,-500.0,0.0001679,2]
[407906558,1772908231812,-151.0,0.0001679,2]
[407906559,1772908231822,-500.0,0.0001679,2]
[407906560,1772908231831,-151.0,0.0001679,2]
[407906561,1772908231841,-500.0,0.0001679,2]
[407906562,1772908231851,-151.0,0.0001679,2]
[407906563,1772908231860,-151.0,0.0001679,2]
[407906564,1772908231870,-151.0,0.0001679,2]
[407906565,1772908231880,-151.0,0.0001679,2]
[407906566,1772908231890,-500.0,0.0001679,2]
[407906567,1772908231899,-500.0,0.0001679,2]
[407906568,1772908231909,-500.0,0.0001679,2]
[407906569,1772908231919,-500.0,0.0001679,2]
[407906570,1772908231928,-500.0,0.0001679,2]
[407906571,1772908231938,-604.81659273,0.0001679,2]
[407906572,1772908231948,-151.0,0.0001679,2]
[407906573,1772908231958,-151.0,0.0001679,2]
[407906574,1772908231968,-151.0,0.0001679,2]
[407906575,1772908231978,-151.0,0.0001679,2]
[407906576,1772908231987,-151.0,0.0001679,2]
[407906577,1772908231997,-151.0,0.0001679,2]
[407906578,1772908232007,-151.0,0.0001679,2]
[407906579,1772908232017,-151.0,0.0001679,2]
[407906580,1772908232028,-151.0,0.0001679,2]
[407906581,1772908232038,-151.0,0.0001679,2]
[407906582,1772908232047,-151.0,0.0001679,2]
[407906583,1772908232057,-151.0,0.0001679,2]
[407906584,1772908232066,-151.0,0.0001679,2]
[407906585,1772908232075,-151.0,0.0001679,2]
[407906586,1772908232086,-151.0,0.0001679,2]
[407906587,1772908232095,-151.0,0.0001679,2]
[407906588,1772908232104,-151.0,0.0001679,2]
[407906589,1772908232114,-151.0,0.0001679,2]
[407906590,1772908232123,-151.0,0.0001679,2]
[407906591,1772908232133,-151.0,0.0001679,2]
[407906592,1772908232146,-151.0,0.0001679,2]
[407906593,1772908232156,-765.57,0.0001679,2]
[407906594,1772908232166,-151.0,0.00016797,2]
[407906595,1772908232176,-500.0,0.00016799,2]
[407906596,1772908232187,-500.0,0.00016799,2]
[407906597,1772908232197,-500.0,0.00016799,2]
[407906598,1772908232207,-500.0,0.00016799,2]
[407906599,1772908232217,-500.0,0.00016799,2]
[407906600,1772908232228,-500.0,0.00016799,2]
[407906601,1772908232238,-210.6126522,0.00016799,2]
[407906602,1772908232248,-169.09871505,0.00016799,2]
[407906603,1772908232262,-485.29077404,0.00016799,2]
[407906604,1772908232272,-500.0,0.00016799,2]
[407906605,1772908232282,-500.0,0.00016799,2]
[407906606,1772908232292,-500.0,0.00016799,2]
[407906607,1772908232302,-500.0,0.00016799,2]
[407906608,1772908232312,-500.0,0.00016799,2]
[407906609,1772908232322,-500.0,0.00016799,2]
[407906610,1772908232333,-500.0,0.00016799,2]
[407906611,1772908232342,-500.0,0.00016799,2]
[407906612,1772908232353,-500.0,0.00016799,2]
[407906613,1772908232363,-500.0,0.00016799,2]
[407906614,1772908232375,-500.0,0.00016799,2]
[407906615,1772908232384,-500.0,0.00016799,2]
[407906616,1772908232395,-500.0,0.00016799,2]
[407906617,1772908232405,-500.0,0.00016799,2]
[407906618,1772908232416,-500.0,0.00016799,2]
[407906619,1772908232426,-500.0,0.00016799,2]
[407906620,1772908232436,-500.0,0.00016799,2]
[407906621,1772908232446,-197.98681978,0.00016799,2]
[407906622,1772908233612,-302.01318022,0.00016799,2]
[407906623,1772908233623,-500.0,0.00016799,2]
[407906624,1772908233634,-500.0,0.00016799,2]
[407906625,1772908233643,-500.0,0.00016799,2]
[407906626,1772908233653,-500.0,0.00016799,2]
[407906627,1772908233664,-500.0,0.00016799,2]
[407906628,1772908233674,-500.0,0.00016799,2]
[407906629,1772908233683,-500.0,0.00016799,2]
[407906630,1772908233694,-500.0,0.00016799,2]
[407906631,1772908233705,-500.0,0.00016799,2]